Cogmind - Beta 13 @@@ ROGUE MODE // 2024.02.29 @ 18:33:56 Player: Geraldon Result: Destroyed by Y-72 Warden with Railgun Performance ------------- Evolutions (6) 3000 Regions Visited (15) 3000 Robots Destroyed (67) 335 Value Destroyed (2366) 2366 Prototype IDs (18) 360 Alien Tech Used (0) 0 Bonus (0) 0 TOTAL SCORE: 9061 Bonus ------- None Cogmind --------- Core Integrity 0/1150 Matter 236/300 Energy 99/100 System Corruption 1% Temperature Cool (9) Movement Core (50) Location -4/Armory Parts ------- > --- POWER (2) -------- (None) > --- PROPULSION (5) --- (None) > --- UTILITY (10) ----- Hacking Suite Hacking Suite Hacking Suite > --- WEAPON (2) ------- (None) > --- INVENTORY (5) ---- Neutrino Core Antimatter Reactor Improved Field Recycling Unit (0) Backup Laser III Peak State ------------ > --- POWER ------------ Neutrino-Fission Core > --- PROPULSION ------- Cooled-Carbon Exoskeleton > --- UTILITY ---------- Armored Scrap Engine Enhanced Optical Array Hacking Suite Hacking Suite Hacking Suite System Shield System Shield > --- WEAPON ----------- Energy Wave Construct/G EM Pulse Construct/C > --- INVENTORY -------- Cooled VTOL Module Authchip [Propulsion] Authchip [Propulsion] Authchip [Processor] Rocket Launcher [Rating: 65] Favorites ----------- Power Improved Ion Engine Engine Improved Ion Engine Power Core Constructs Propulsion Light Treads Treads Light Treads Leg Aluminum Leg Hover Unit Gravmag System Flight Unit Field Propulsion Array Utility Hacking Suite Device Improved Heat Sink Storage Large Storage Unit Processor Enhanced Optical Array Hackware Hacking Suite Protection Reflective Plating Weapon Particle Cannon Energy Gun Precision Shock Rifle Energy Cannon Particle Cannon Ballistic Gun Improved Assault Rifle Ballistic Cannon Advanced Assault Cannon Launcher Rocket Launcher Special Melee Weapon Datajack Build | -11 -10 -10 -9 -9 -9 -8 -8 -7 -7 -7 -5 -5 -5 -4 -4 ------- Run | Yrd Mat Min Mat Min Exi Min Mat Fac Sto Rec Fac Upp Upp Fac Arm Slots Evolved 12 | . . . 2 . . . 2 2 . . 4 . . 2 . Power 1 | . . . . . . . . . . . 1 . . . . Propulsion 3 | . . . 1 . . . 1 . . . 1 . . . . Utility 8 | . . . 1 . . . 1 2 . . 2 . . 2 . Weapon . | . . . . . . . . . . . . . . . . Parts Attached 109 | 6 1 . 23 2 . 13 9 21 8 6 8 1 . 8 3 Power 10 | 1 . . 3 . . 1 1 3 . 1 . . . . . Engine 9 | 1 . . 3 . . 1 1 2 . 1 . . . . . Core 1 | . . . . . . . . 1 . . . . . . . Reactor . | . . . . . . . . . . . . . . . . Propulsion 27 | 2 . . 5 2 . 5 2 4 2 1 2 . . 1 1 Treads 12 | 2 . . 5 2 . 2 . . . . . . . . 1 Leg 6 | . . . . . . 3 2 . . . 1 . . . . Wheel . | . . . . . . . . . . . . . . . . Hover 6 | . . . . . . . . 4 2 . . . . . . Flight 3 | . . . . . . . . . . 1 1 . . 1 . Utility 42 | 1 1 . 5 . . 3 4 12 2 1 5 . . 6 2 Device 14 | . . . 3 . . 1 1 4 . 1 1 . . 2 1 Storage 2 | 1 1 . . . . . . . . . . . . . . Processor 2 | . . . . . . . . . . . 1 . . 1 . Hackware 11 | . . . . . . . . 4 1 . 3 . . 2 1 Protection 13 | . . . 2 . . 2 3 4 1 . . . . 1 . Artifact . | . . . . . . . . . . . . . . . . Weapon 30 | 2 . . 10 . . 4 2 2 4 3 1 1 . 1 . Energy Gun 6 | . . . . . . . 2 1 2 1 . . . . . Energy Cannon 5 | . . . 5 . . . . . . . . . . . . Ballistic Gun 6 | 2 . . 3 . . 1 . . . . . . . . . Ballistic Cannon 4 | . . . 1 . . 1 . 1 . . 1 . . . . Launcher 8 | . . . 1 . . 2 . . 2 1 . 1 . 1 . Special Weapon . | . . . . . . . . . . . . . . . . Impact Weapon . | . . . . . . . . . . . . . . . . Slashing Weapon . | . . . . . . . . . . . . . . . . Piercing Weapon . | . . . . . . . . . . . . . . . . Special Melee Weapon 1 | . . . . . . . . . . 1 . . . . . Unidentified Prototypes 12 | . . . 2 . . . 1 2 5 1 . . . . 1 Corrupted Parts 3 | . . . . . . . 1 . . . 2 . . . . System Corruption 13 | . . . . . . . 4 . . . 9 . . . . Parts Lost 48 | . . . 1 . . 9 2 6 4 1 6 4 2 5 8 Power 6 | . . . 1 . . 1 . . . . 1 . . 1 2 Propulsion 16 | . . . . . . 4 1 4 2 . 1 1 . 1 2 Utility 17 | . . . . . . 3 1 2 1 . 2 3 2 1 2 Weapon 9 | . . . . . . 1 . . 1 1 2 . . 2 2 Highest Loss Streak 7 | . . . 1 . . 6 1 2 3 1 3 2 1 4 7 To Critical Strikes . | . . . . . . . . . . . . . . . . Average Slot Usage (%) 73 | . 85 85 95 100 100 94 95 85 77 62 56 40 14 48 53 Engine 6 | . 14 14 10 11 11 10 9 6 . 3 4 . . 9 6 Treads 10 | . 28 28 31 33 33 5 . . . . . . . . . Leg 5 | . . . . . . 25 32 7 . 5 3 4 . . . Hover 3 | . . . . . . . . 18 24 1 1 . . 9 3 Device 8 | . . . 16 11 11 10 14 13 1 6 6 4 . 2 4 Storage 4 | . 14 14 11 11 11 11 9 2 . . . . . . . Hackware 13 | . . . . . . . . 12 29 30 30 22 14 15 20 Protection 3 | . . . 3 11 11 10 12 7 12 . . . . . 3 Energy Gun 2 | . . . . . . . 17 8 7 3 2 . . 6 4 Energy Cannon 2 | . . . 16 . . . . . . . . . . . . Ballistic Gun 4 | . 28 28 2 22 22 11 . . . . . . . . . Ballistic Cannon 1 | . . . . . . 8 . 4 1 . . . . . . Naked Turns . | . . . . . . . . . . . . . . . . Heaviest Build 55 | 10 25 25 40 38 38 44 55 53 14 12 21 13 . 14 10 Greatest Support 60 | 40 40 40 60 60 60 60 50 37 18 24 27 15 3 16 15 Greatest Overweight (x) 2 | . . . . . . 1 1 2 . . 1 . . . 2 Average Overweight (x) . | . . . . . . . . . . . . . . . . Largest Inventory Capacity 15 | 8 15 15 15 15 15 15 15 15 5 5 5 5 5 5 5 Average Capacity 9 | 6 12 15 15 15 15 15 15 8 5 5 5 5 5 5 5 Most Carried 15 | 3 3 4 15 14 14 14 15 14 5 5 5 5 5 5 5 Average Carried 6 | . 1 3 12 13 13 9 12 5 4 3 4 2 5 4 4 Final Capacity 15 | 8 15 15 15 15 15 15 15 5 5 5 5 5 5 5 5 Final Carried 14 | 2 2 4 13 14 12 12 14 5 4 5 3 5 5 5 4 Scrap Engine Consumption 55 | . . . . . . . . . . 15 40 . . . . Constructs Created 8 | . . . . . . . . . . 1 6 1 . . . Constructs Modified 14 | . . . . . . . . . . 5 9 . . . . Class Distribution -------------------- 43% | Hacker-Mutant 35% | Scavenger-Mutant 13% | Mutant 4% | Wizard-Mutant 3% | Hacker-Construct Dominant Class ---------------- Mutant | -10/Materials Mutant | -10/Mines Scavenger-Mutant | -9/Materials Scavenger-Mutant | -9/Mines Scavenger-Mutant | -9/Exiles Scavenger-Mutant | -8/Mines Scavenger-Mutant | -8/Materials Hacker-Mutant | -7/Factory Hacker-Mutant | -7/Storage Hacker-Mutant | -7/Recycling Hacker-Mutant | -5/Factory Hacker-Mutant | -5/Upper Caves Hacker-Mutant | -5/Upper Caves Hacker-Mutant | -4/Factory Hacker-Mutant | -4/Armory Resources | -11 -10 -10 -9 -9 -9 -8 -8 -7 -7 -7 -5 -5 -5 -4 -4 ----------- Run | Yrd Mat Min Mat Min Exi Min Mat Fac Sto Rec Fac Upp Upp Fac Arm Matter Collected 1932 | 268 18 48 270 14 . 217 113 346 56 189 272 25 . 96 . Remotely . | . . . . . . . . . . . . . . . . Salvage Created 2851 | 85 86 139 733 . . 265 330 332 . 234 647 . . . . Parts 152 | 5 3 10 47 . . 11 20 20 . 9 27 . . . . Haulers Intercepted 4 | . . . 3 . . . . . . . 1 . . . . Recyclers Shooed 1 | 1 . . . . . . . . . . . . . . . Parts Field Recycled . | . . . . . . . . . . . . . . . . Retrieved Matter . | . . . . . . . . . . . . . . . . Parts Self-Destructed . | . . . . . . . . . . . . . . . . Prevented . | . . . . . . . . . . . . . . . . Kills | -11 -10 -10 -9 -9 -9 -8 -8 -7 -7 -7 -5 -5 -5 -4 -4 ------- Run | Yrd Mat Min Mat Min Exi Min Mat Fac Sto Rec Fac Upp Upp Fac Arm Combat Hostiles Destroyed 48 | . 2 5 10 . . 8 4 8 . . 11 . . . . Guns 20 | . 2 5 1 . . 2 3 4 . . 3 . . . . Cannons 16 | . . . 9 . . 1 . 4 . . 2 . . . . AOE 9 | . . . . . . 5 . . . . 4 . . . . Classes Destroyed 13 | 2 1 1 5 . . 2 1 1 . . . . . . . Builder 2 | . . . 1 . . . . . . 1 . . . . . Tunneler 1 | 1 . . . . . . . . . . . . . . . Hauler 4 | . . . 3 . . . . . . . 1 . . . . Recycler 2 | 1 . . . . . . 1 . . . . . . . . Operator 5 | . . . 2 . . . 1 2 . . . . . . . Watcher 5 | . . . 3 . . . . . . . 1 . . 1 . Swarmer 7 | . . 3 . . . . . . . . 4 . . . . Grunt 25 | . 2 2 6 . . 6 . 3 . . 6 . . . . Brawler 1 | . . . . . . 1 . . . . . . . . . Duelist 1 | . . . . . . 1 . . . . . . . . . Sentry 9 | . . . 4 . . . 3 1 . . 1 . . . . Hunter 2 | . . . . . . . 1 1 . . . . . . . Programmer 3 | . . . . . . . . 3 . . . . . . . Best Kill Streak 6 | 2 2 3 2 . . 6 3 3 . 1 5 . . 1 . Combat Bots Only 6 | . 2 3 2 . . 6 2 3 . . 4 . . . . Max Kills in Single Turn 3 | 1 1 1 1 . . 2 1 1 . 1 3 . . 1 . Gunslinging . | . . . . . . . . . . . . . . . . Exploded 3 | . . . . . . 2 . . . . 3 . . . . Melee . | . . . . . . . . . . . . . . . . Uniques/NPCs Destroyed . | . . . . . . . . . . . . . . . . Combat | -11 -10 -10 -9 -9 -9 -8 -8 -7 -7 -7 -5 -5 -5 -4 -4 -------- Run | Yrd Mat Min Mat Min Exi Min Mat Fac Sto Rec Fac Upp Upp Fac Arm Hostile Shots Fired 826 | . 14 37 34 . 31 59 30 148 106 18 127 64 20 34 104 Missed 320 | . 4 8 13 . 8 12 9 56 56 11 47 31 7 15 43 Damage Taken 8815 | . 142 251 249 . 498 1021 317 978 497 63 1828 630 211 582 1548 Core 2682 | . 28 27 37 . 39 184 25 153 88 24 371 359 177 191 979 Absorbed by Shields 191 | . . . . . . . . 191 . . . . . . . Redirected to Shielding 152 | . . . . . . . . 97 55 . . . . . . Ignored by Resistances 25 | . . . 7 . 14 4 . . . . . . . . . Regen/Repaired (Parts) 366 | . . . 124 . . . . . . . 242 . . . . Core Remaining (%) 63 | 100 . 78 . . . 35 95 . . 62 . . 9 . . Volleys Fired 249 | 4 13 15 44 . . 14 12 82 4 10 43 1 . 7 . Largest 2 | 2 2 2 2 . . 2 2 2 1 1 2 1 . 1 . Hottest 136 | 40 40 40 136 . . 46 110 110 60 20 88 33 . 33 . Shots Fired 364 | 8 26 30 84 . . 25 24 96 4 10 49 1 . 7 . Gun 202 | 8 26 30 4 . . 19 24 54 3 10 24 . . . . Cannon 142 | . . . 76 . . 2 . 42 1 . 21 . . . . Launcher 20 | . . . 4 . . 4 . . . . 4 1 . 7 . Special . | . . . . . . . . . . . . . . . . Kinetic 142 | 8 26 30 6 . . 21 . 42 1 . 8 . . . . Thermal 132 | . . . 74 . . . . 34 3 10 11 . . . . Explosive 20 | . . . 4 . . 4 . . . . 4 1 . 7 . Electromagnetic 70 | . . . . . . . 24 20 . . 26 . . . . Robot Hit Streak 14 | 3 9 6 8 . . 13 14 8 . 9 12 . . . . Robot Miss Streak 3 | 1 2 3 3 . . 1 1 2 . 1 2 . . . . Penetration Max . | . . . . . . . . . . . . . . . . Secondary Targets 4 | . . 1 . . . 1 . . . . 2 . . . . Max Gunslinging Chain 1 | . . 1 . . . 1 . . . . 1 . . . . Shots Hit Robots 235 | 5 18 19 51 . . 21 19 54 . 10 38 . . . . Core Hits 120 | 4 8 11 21 . . 16 9 23 . 4 22 . . 2 . Critical Kills 2 | . . . . . . . . . . . 2 . . . . Critical Parts Destroyed 3 | . . . . . . . . . . . 3 . . . . Critical Strikes 10 | . . . . . . . 1 3 . . 6 . . . . Destroy 5 | . . . . . . . . . . . 5 . . . . Blast 2 | . . . . . . . . 2 . . . . . . . Corrupt 3 | . . . . . . . 1 1 . . 1 . . . . Melee Attacks 1 | . . . . . . . . . . 1 . . . . . Impact . | . . . . . . . . . . . . . . . . Slashing . | . . . . . . . . . . . . . . . . Piercing . | . . . . . . . . . . . . . . . . Sneak Attacks 1 | . . . . . . . . . . 1 . . . . . Combat Hostiles . | . . . . . . . . . . . . . . . . Follow-up Attacks . | . . . . . . . . . . . . . . . . Damage Inflicted 5230 | 42 151 153 1103 . . 843 368 1062 . 170 1145 . . 181 12 Guns 2101 | 42 151 153 22 . . 269 362 549 . 170 383 . . . . Cannons 1986 | . . . 1039 . . 20 . 513 . . 414 . . . . Explosions 1116 | . . . 42 . . 554 . . . . 339 . . 181 . Melee . | . . . . . . . . . . . . . . . . Ramming 27 | . . . . . . . 6 . . . 9 . . . 12 Kinetic 1317 | 42 151 153 41 . . 289 . 513 . . 128 . . . . Thermal 1859 | . . . 1020 . . 29 . 481 . 170 159 . . . . Explosive 1087 | . . . 42 . . 525 . . . . 339 . . 181 . Electromagnetic 940 | . . . . . . . 362 68 . . 510 . . . . Impact . | . . . . . . . . . . . . . . . . Slashing . | . . . . . . . . . . . . . . . . Piercing . | . . . . . . . . . . . . . . . . Highest Corruption 16 | . . . . . . 4 4 4 4 4 16 16 16 1 1 Average Corruption 6 | . . . . . . 4 4 2 4 4 3 16 16 1 1 Corruption Purged . | . . . . . . . . . . . . . . . . Corruption Blocked . | . . . . . . . . . . . . . . . . Effects 113 | . . . . . . 14 3 15 3 6 15 48 5 . 4 Message Errors 26 | . . . . . . 5 3 4 1 . 2 11 . . . Matter Fused 22 | . . . . . . 3 . 3 2 1 3 8 1 . 1 Heat Flow Errors 22 | . . . . . . . . 3 . 1 7 11 . . . Energy Discharges 14 | . . . . . . 2 . 1 . 3 1 4 3 . . Parts Fused 1 | . . . . . . . . . . . . 1 . . . Data Loss (minor) 19 | . . . . . . 2 . 3 . 1 2 8 . . 3 Data Loss (major) 3 | . . . . . . . . 1 . . . 2 . . . Misfires 2 | . . . . . . 2 . . . . . . . . . Alerts 2 | . . . . . . . . . . . . 1 1 . . Misdirections 2 | . . . . . . . . . . . . 2 . . . Overload Shots 18 | . . . . . . . . 16 2 . . . . . . Overflow Damage 62 | . . . . . . 23 . 24 . . 15 . . . . Projectiles 24 | . . . . . . . . 24 . . . . . . . Explosions 38 | . . . . . . 23 . . . . 15 . . . . Melee . | . . . . . . . . . . . . . . . . Knockbacks 11 | . . . 1 . . . . 10 . . . . . . . Impact . | . . . . . . . . . . . . . . . . Kinetic 8 | . . . 1 . . . . 7 . . . . . . . Secondary 3 | . . . . . . . . 3 . . . . . . . Self-Inflicted Damage 205 | . . . . . . 163 . . . . 4 . . 33 5 Shots 6 | . . . . . . 4 . . . . . . . 2 . Rammed 5 | . . . . . . . . . . . 2 . . . 3 Targets Rammed 7 | . . . . . . . 2 . . . 2 . . . 3 Kicked 2 | . . . . . . . 2 . . . . . . . . Crushed . | . . . . . . . . . . . . . . . . Highest Temperature 306 | . 30 9 306 . . 79 72 195 . 124 242 248 . . . Average Temperature 62 | . 14 7 60 . . 57 22 61 . 76 62 106 . . . Received Heat Transfer 1781 | . 78 30 111 . 40 288 81 274 138 24 333 219 36 51 78 Siege Activations . | . . . . . . . . . . . . . . . . Robots Corrupted 3 | . . . . . . . 1 . . . 2 . . . . Combat Hostiles 3 | . . . . . . . 1 . . . 2 . . . . Parts Fried 6 | . . . . . . . 2 1 . . 3 . . . . Impact Corruptions . | . . . . . . . . . . . . . . . . Robots Melted . | . . . . . . . . . . . . . . . . Combat Hostiles . | . . . . . . . . . . . . . . . . Parts Melted 5 | . . . 2 . . . . 3 . . . . . . . Heat Transferred 3112 | . . . 1850 . . 50 . 768 . 333 111 . . . . Parts Sabotaged 2 | . . . . . . . . . . . . . . . 2 Parts Stolen . | . . . . . . . . . . . . . . . . Parts Stripped . | . . . . . . . . . . . . . . . . Power Chain Reactions . | . . . . . . . . . . . . . . . . Alert | -11 -10 -10 -9 -9 -9 -8 -8 -7 -7 -7 -5 -5 -5 -4 -4 ------- Run | Yrd Mat Min Mat Min Exi Min Mat Fac Sto Rec Fac Upp Upp Fac Arm Peak Influence 330 | 10 76 149 230 42 . 184 186 330 191 98 197 . . 141 156 Initial 113 | . 6 29 . 42 . . 1 79 113 70 6 . . 22 61 Average 86 | 2 64 83 81 34 . 109 109 136 136 49 87 . . 45 71 Maximum Alert Level 1 | . . . 1 . . . . 1 . . . . . . . Low Security (%) 95 | 100 100 100 94 100 . 100 100 77 100 100 100 . . 100 100 Level 1 4 | . . . 5 . . . . 22 . . . . . . . Level 2 . | . . . . . . . . . . . . . . . . Level 3 . | . . . . . . . . . . . . . . . . Level 4 . | . . . . . . . . . . . . . . . . Level 5 . | . . . . . . . . . . . . . . . . High Security . | . . . . . . . . . . . . . . . . Max Security . | . . . . . . . . . . . . . . . . Squads Dispatched 17 | . 1 . 4 . . . 2 5 . . 3 . . 1 1 Investigation 6 | . 1 . 2 . . . 1 1 . . 1 . . . . Extermination 4 | . . . . . . . . 3 . . 1 . . . . Reinforcement 7 | . . . 2 . . . 1 1 . . 1 . . 1 1 Assault . | . . . . . . . . . . . . . . . . Garrison . | . . . . . . . . . . . . . . . . Intercept . | . . . . . . . . . . . . . . . . Searches Triggered . | . . . . . . . . . . . . . . . . Construction Impeded . | . . . . . . . . . . . . . . . . Haulers Reinforced 1 | . . . . . . . . . . . 1 . . . . Active Scanning Responses . | . . . . . . . . . . . . . . . . Cargo Convoy Interrupts . | . . . . . . . . . . . . . . . . Stealth | -11 -10 -10 -9 -9 -9 -8 -8 -7 -7 -7 -5 -5 -5 -4 -4 --------- Run | Yrd Mat Min Mat Min Exi Min Mat Fac Sto Rec Fac Upp Upp Fac Arm Distress Signals 21 | . . . 7 . . . 1 6 1 . 2 . . 3 1 Communications Jammed . | . . . . . . . . . . . . . . . . Distress Signals . | . . . . . . . . . . . . . . . . Times Spotted 215 | . 5 5 20 . 8 12 9 33 16 1 32 15 9 17 33 Peak Tracking Total 26 | . 3 3 3 . 9 6 5 7 13 1 9 13 9 15 26 Tactical Retreats 23 | . . . . . . 1 . 6 1 1 6 3 1 1 3 Traps | -11 -10 -10 -9 -9 -9 -8 -8 -7 -7 -7 -5 -5 -5 -4 -4 ------- Run | Yrd Mat Min Mat Min Exi Min Mat Fac Sto Rec Fac Upp Upp Fac Arm Traps Triggered 10 | . 1 . 3 . . . 1 1 1 . 3 . . . . Indirectly . | . . . . . . . . . . . . . . . . Trap Hack Attempts . | . . . . . . . . . . . . . . . . Triggered . | . . . . . . . . . . . . . . . . Disarmed . | . . . . . . . . . . . . . . . . Reprogrammed . | . . . . . . . . . . . . . . . . Reused 3 | . . . . . 1 1 . 1 . . . . . . . Traps Extracted . | . . . . . . . . . . . . . . . . Installed 5 | . . . . . 2 1 . 2 . . . . . . . Triggered 2 | . . . . . . 1 . 1 . . . . . . . Most Traps Carried 5 | . . . . 5 5 3 2 2 . . . . . . . Machines | -11 -10 -10 -9 -9 -9 -8 -8 -7 -7 -7 -5 -5 -5 -4 -4 ---------- Run | Yrd Mat Min Mat Min Exi Min Mat Fac Sto Rec Fac Upp Upp Fac Arm Machines Disabled 5 | . . . . . . 1 . 1 2 . 1 . . . . Max in Single Turn 1 | . . . . . . 1 . 1 1 . 1 . . . . Garrison Access 2 | . . . . . . . . 1 . . 1 . . . . Machines Repaired . | . . . . . . . . . . . . . . . . Machines Dismantled . | . . . . . . . . . . . . . . . . Machines Sabotaged . | . . . . . . . . . . . . . . . . Overloaded Fab Kills . | . . . . . . . . . . . . . . . . Hacking | -11 -10 -10 -9 -9 -9 -8 -8 -7 -7 -7 -5 -5 -5 -4 -4 --------- Run | Yrd Mat Min Mat Min Exi Min Mat Fac Sto Rec Fac Upp Upp Fac Arm Machines Accessed 47 | . 2 . 8 . . 1 1 10 3 10 7 . . 1 4 Terminals 31 | . 2 . 6 . . 1 1 6 3 5 4 . . . 3 Fabricators 2 | . . . . . . . . 1 . . 1 . . . . Repair Stations 4 | . . . 1 . . . . 1 . . . . . 1 1 Recycling Units 6 | . . . . . . . . . . 5 1 . . . . Scanalyzers 2 | . . . 1 . . . . 1 . . . . . . . Garrison Access 2 | . . . . . . . . 1 . . 1 . . . . Total Hacks 135 | . 6 . 24 . . 2 2 27 6 23 17 . . 2 26 Successful 86 | . 3 . 12 . . 2 1 17 4 14 13 . . 1 19 Failed 49 | . 3 . 12 . . . 1 10 2 9 4 . . 1 7 Catastrophic 7 | . 1 . 4 . . . . 2 . . . . . . . Database Lockouts . | . . . . . . . . . . . . . . . . Manual 45 | . 4 . 13 . . . 1 3 3 3 6 . . . 12 Terminals 102 | . 6 . 21 . . 2 2 15 6 16 12 . . . 22 Fabricators 4 | . . . . . . . . 2 . . 2 . . . . Repair Stations 9 | . . . 2 . . . . 1 . . . . . 2 4 Recycling Units 8 | . . . . . . . . . . 7 1 . . . . Scanalyzers 9 | . . . 1 . . . . 8 . . . . . . . Garrison Access 3 | . . . . . . . . 1 . . 2 . . . . Terminal Hacks 41 | . 2 . 7 . . 2 . 5 3 6 6 . . . 10 Part Schematic 2 | . . . . . . . . . . . 2 . . . . Robot Analysis 2 | . . . . . . . . . . 1 . . . . 1 Open Door 2 | . . . . . . . . . 2 . . . . . . Open DSF 2 | . . . . . . . . 1 . . 1 . . . . Level Access Points 2 | . . . . . . . . . . . . . . . 2 Branch Access Points 2 | . . . . . . . . 1 . . 1 . . . . Alert Level 5 | . 1 . 2 . . . . . . 1 . . . . 1 Locate Traps 2 | . 1 . . . . . . . . . 1 . . . . Dispatch Records 2 | . . . 1 . . 1 . . . . . . . . . Patrol Status 1 | . . . . . . . . . . . . . . . 1 Transport Status 1 | . . . 1 . . . . . . . . . . . . Extermination Status 1 | . . . . . . . . . . . . . . . 1 Reinforcement Status 1 | . . . 1 . . . . . . . . . . . . Recall Reinforcements 1 | . . . . . . . . . . . . . . . 1 Hauler Manifests 2 | . . . 1 . . . . . . 1 . . . . . Registered Components 3 | . . . 1 . . . . . . . 1 . . . 1 Registered Prototypes 1 | . . . . . . . . 1 . . . . . . . Zone Layout 9 | . . . . . . 1 . 2 1 3 . . . . 2 Fabricator Hacks 4 | . . . . . . . . 2 . . 2 . . . . Load Schematic 2 | . . . . . . . . 1 . . 1 . . . . Build 2 | . . . . . . . . 1 . . 1 . . . . Repair Station Hacks 5 | . . . 2 . . . . 1 . . . . . 1 1 Scan Component 1 | . . . 1 . . . . . . . . . . . . Repair 1 | . . . 1 . . . . . . . . . . . . Refit 3 | . . . . . . . . 1 . . . . . 1 1 Recycling Unit Hacks 7 | . . . . . . . . . . 6 1 . . . . Process 1 | . . . . . . . . . . 1 . . . . . Retrieve Matter 2 | . . . . . . . . . . 2 . . . . . Retrieve Components 4 | . . . . . . . . . . 3 1 . . . . Scanalyzer 7 | . . . . . . . . 7 . . . . . . . Insert Component 3 | . . . . . . . . 3 . . . . . . . Analyze 4 | . . . . . . . . 4 . . . . . . . Garrison Access Hacks 2 | . . . . . . . . 1 . . 1 . . . . Seal Access 2 | . . . . . . . . 1 . . 1 . . . . Unauthorized Hacks 20 | . 1 . 3 . . . 1 1 1 2 3 . . . 8 Terminals 19 | . 1 . 2 . . . 1 1 1 2 3 . . . 8 Track 5 | . . . . . . . . . . 1 1 . . . 3 Botnet 11 | . 1 . 2 . . . 1 1 1 1 2 . . . 2 Disrupt 2 | . . . . . . . . . . . . . . . 2 Operators 1 | . . . . . . . . . . . . . . . 1 Fabricators . | . . . . . . . . . . . . . . . . Repair Stations . | . . . . . . . . . . . . . . . . Recycling Units . | . . . . . . . . . . . . . . . . Scanalyzers 1 | . . . 1 . . . . . . . . . . . . Extract 1 | . . . 1 . . . . . . . . . . . . Garrison Access . | . . . . . . . . . . . . . . . . Data Cores Recovered . | . . . . . . . . . . . . . . . . Used . | . . . . . . . . . . . . . . . . Hacking Detections 32 | . 2 . 6 . . 1 1 7 2 6 4 . . . 3 Full Trace Events 2 | . . . . . . . . 1 . . 1 . . . . Feedback Events . | . . . . . . . . . . . . . . . . Feedback Blocked . | . . . . . . . . . . . . . . . . Robot Schematics Acquired . | . . . . . . . . . . . . . . . . Robots Built . | . . . . . . . . . . . . . . . . Authchips . | . . . . . . . . . . . . . . . . Time . | . . . . . . . . . . . . . . . . Total Robot Build Rating . | . . . . . . . . . . . . . . . . Part Schematics Acquired 8 | . . . 3 . . . . 3 . . 2 . . . . Parts Built 2 | . . . . . . . . 1 . . 1 . . . . Authchips . | . . . . . . . . . . . . . . . . Time 146 | . . . . . . . . 73 . . 73 . . . . Total Part Build Rating 6 | . . . . . . . . 3 . . 3 . . . . Parts Repaired 1 | . . . 1 . . . . . . . . . . . . Time 26 | . . . 26 . . . . . . . . . . . . Parts Recycled . | . . . . . . . . . . . . . . . . Recycled Matter 9 | . . . . . . . . . . 9 . . . . . Retrieved Matter 9 | . . . . . . . . . . 9 . . . . . Retrieved Components 8 | . . . . . . . . . . 5 3 . . . . Parts Scanalyzed 3 | . . . . . . . . 3 . . . . . . . Part Schematics Acquired 3 | . . . . . . . . 3 . . . . . . . Parts Damaged . | . . . . . . . . . . . . . . . . Bothacking | -11 -10 -10 -9 -9 -9 -8 -8 -7 -7 -7 -5 -5 -5 -4 -4 ------------ Run | Yrd Mat Min Mat Min Exi Min Mat Fac Sto Rec Fac Upp Upp Fac Arm Used RIF Installer . | . . . . . . . . . . . . . . . . Robots Hacked 1 | . . . . . . . . . . 1 . . . . . Non-combat 1 | . . . . . . . . . . 1 . . . . . Combat . | . . . . . . . . . . . . . . . . Robot Hacks Applied 1 | . . . . . . . . . . 1 . . . . . parse_system 1 | . . . . . . . . . . 1 . . . . . Relay Couplers Released . | . . . . . . . . . . . . . . . . Fabnet Peak Effective % . | . . . . . . . . . . . . . . . . Robots Rewired . | . . . . . . . . . . . . . . . . Allies Hacked . | . . . . . . . . . . . . . . . . Hacks Repelled . | . . . . . . . . . . . . . . . . Allies | -11 -10 -10 -9 -9 -9 -8 -8 -7 -7 -7 -5 -5 -5 -4 -4 -------- Run | Yrd Mat Min Mat Min Exi Min Mat Fac Sto Rec Fac Upp Upp Fac Arm Total Allies . | . . . . . . . . . . . . . . . . Largest Group . | . . . . . . . . . . . . . . . . Highest-Rated Group . | . . . . . . . . . . . . . . . . Highest-Rated Ally . | . . . . . . . . . . . . . . . . Total Orders 4 | . . . . . . . . . . . . . . 4 . EXPLORE 3 | . . . . . . . . . . . . . . 3 . RETURN 1 | . . . . . . . . . . . . . . 1 . Ally Attacks . | . . . . . . . . . . . . . . . . Total Damage . | . . . . . . . . . . . . . . . . Kills . | . . . . . . . . . . . . . . . . Allies Corrupted . | . . . . . . . . . . . . . . . . Allies Melted . | . . . . . . . . . . . . . . . . Intel | -11 -10 -10 -9 -9 -9 -8 -8 -7 -7 -7 -5 -5 -5 -4 -4 ------- Run | Yrd Mat Min Mat Min Exi Min Mat Fac Sto Rec Fac Upp Upp Fac Arm Robot Analysis Total 2 | . . . . . . . . . . 1 . . . . 1 Derelict Logs Recovered 4 | . . 3 . 1 . . . . . . . . . . . Drone Launches 3 | . . . . . . . . . . . . . . 3 . Drone Recoveries 2 | . . . . . . . . . . . . . . 2 . Exploration | -11 -10 -10 -9 -9 -9 -8 -8 -7 -7 -7 -5 -5 -5 -4 -4 ------------- Run | Yrd Mat Min Mat Min Exi Min Mat Fac Sto Rec Fac Upp Upp Fac Arm Turns Passed 9121 | 159 241 458 1530 489 112 541 301 1265 159 665 1318 1205 124 379 175 Spaces Moved 7382 | 52 117 253 819 300 69 253 156 1395 202 662 1145 841 247 522 349 Core 1094 | 10 . . . . . . . 78 . . 400 262 247 20 77 Treads 1643 | 42 117 253 819 300 69 43 . . . . . . . . . Legs 2134 | . . . . . . 210 156 174 . 504 511 579 . . . Wheels 34 | . . . . . . . . . . 34 . . . . . Hover 1821 | . . . . . . . . 1143 202 2 208 . . 266 . Flight 656 | . . . . . . . . . . 122 26 . . 236 272 Fastest Speed 32 | 50 160 160 160 160 160 160 120 48 50 35 32 50 50 40 40 Average Speed 97 | 138 160 160 160 160 160 188 150 66 52 80 79 98 50 58 47 Slowest Speed 260 | 160 160 160 160 160 160 240 193 260 60 102 157 120 50 76 150 Overloaded Moves 19 | . . . . . . . . . . . 19 . . . . Propulsion Burnouts . | . . . . . . . . . . . . . . . . Robots Hopped 9 | . . . . . . . . . . . . . . 3 6 Cave-ins Triggered . | . . . . . . . . . . . . . . . . Exploration Rate (%) 45 | 8 34 56 76 75 11 77 15 29 55 89 31 81 27 18 40 Regions Visited 15 Branch Regions 9 Pre-discovered Areas 1 | . . . . 1 . . . . . . . . . . . Known Exits Taken 3 | . . . 1 . . . . 1 . . 1 . . . . Unknown Exits Taken 12 | 1 1 1 . 1 1 1 1 . 1 1 . 1 1 1 . Scrap Searched 4 | . . 1 . 1 . 1 . . . . . 1 . . . Spaces Dug 66 | . . . 30 . . . . 9 1 . . 9 . 17 . Terrain Destroyed 150 | . . . 38 . . 35 . 17 1 . 10 9 . 40 . Melee . | . . . . . . . . . . . . . . . . Projectile 18 | . . . . . . . . 17 1 . . . . . . AOE 132 | . . . 38 . . 35 . . . . 10 9 . 40 . Terrain Rammed . | . . . . . . . . . . . . . . . . Walls Destroyed . | . . . . . . . . . . . . . . . . Machines Disabled . | . . . . . . . . . . . . . . . . Actions | -11 -10 -10 -9 -9 -9 -8 -8 -7 -7 -7 -5 -5 -5 -4 -4 --------- Run | Yrd Mat Min Mat Min Exi Min Mat Fac Sto Rec Fac Upp Upp Fac Arm Total 8995 | 132 151 282 959 312 72 295 202 1648 251 784 1507 1219 246 583 352 Wait 1061 | 63 17 13 34 . . 2 . 106 27 92 290 373 . 44 . Move 7352 | 51 116 252 818 299 68 252 156 1394 201 661 1144 840 246 517 337 Hop 7 | . . . . . . . . . . . . . . 1 6 Pick Up 113 | 8 2 2 27 6 . 11 14 18 4 7 6 2 . 4 2 Fast Attach 14 | . . . 2 . . . . 2 5 . 3 . . 2 . Attach 85 | 6 1 . 16 2 . 11 8 17 3 6 5 1 . 6 3 Detach 11 | . . . 2 . . 1 . 1 . 2 2 1 . 2 . Swap 10 | . . . 5 . . 2 1 2 . . . . . . . Drop 81 | . 2 . 11 5 2 1 10 24 7 5 12 1 . . 1 Fire 249 | 4 13 15 44 . . 14 12 82 4 10 43 1 . 7 . Melee 1 | . . . . . . . . . . 1 . . . . . Ram 5 | . . . . . . . . . . . 2 . . . 3 Kick 1 | . . . . . . . 1 . . . . . . . . Crush . | . . . . . . . . . . . . . . . . Escape Stasis . | . . . . . . . . . . . . . . . . Rewire . | . . . . . . . . . . . . . . . . Trap 5 | . . . . . 2 1 . 2 . . . . . . . Miscellaneous . | . . . . . . . . . . . . . . . . Route ------- -11/Scrapyard -10/Materials -10/Mines -9/Materials (discovered 3 exits: *Mat x2 / *Min) -9/Mines -9/Exiles -8/Mines -8/Materials -7/Factory (discovered 4 exits: [*Fac] / *Sto / *Low x2) -7/Storage -7/Recycling -5/Factory (discovered 4 exits: *Upp x2 / Ext x2) -5/Upper Caves -5/Upper Caves -4/Factory -4/Armory (discovered 2 exits: *Res x2) History --------- Turn | Location | Event 71 | -11/Scrapyard | Discovered new exit (range 14) 160 | -11/Scrapyard | Entered Materials 313 | -10/Materials | Build established: Mutant 385 | -10/Materials | Discovered new exit (range 8) 401 | -10/Materials | Entered Mines 416 | -10/Mines | Met a Derelict bent on vengeance 539 | -10/Mines | Learned Materials emergency access door positions 540 | -10/Mines | Discovered new exit (range 11) 545 | -10/Mines | Learned location of 1 exit from Materials 606 | -10/Mines | Learned Materials interactive machine intel 859 | -10/Mines | Entered Materials 859 | -9/Materials | Evolved 2 slots: Propulsion x1, Utility x1 860 | -9/Materials | Identified exit to Mines 862 | -9/Materials | Loaded intel: 18 interactive machine locations 1003 | -9/Materials | Repaired Lgt. Treads 1350 | -9/Materials | Build established: Scavenger-Mutant 1488 | -9/Materials | Discovered new exit (range 4) 1631 | -9/Materials | Discovered new exit (range 15) 2389 | -9/Materials | Entered Mines 2403 | -9/Mines | Received a Rocket Launcher from a helpful Derelict 2542 | -9/Mines | Learned location of Storage (-7) 2720 | -9/Mines | Found a hidden stash of uninstalled traps 2872 | -9/Mines | Deemed a non-threat by the Exiles lab entrance 2872 | -9/Mines | Discovered new exit (range 5) 2878 | -9/Mines | Entered Exiles 2917 | -9/Exiles | Met 8R-AWN 2941 | -9/Exiles | Warned about trapping Exiles lab 2960 | -9/Exiles | Attacked by the Exiles 2973 | -9/Exiles | Discovered new exit (range 14) 2990 | -9/Exiles | Entered Mines 3058 | -8/Mines | Lost 3 parts (1p1n1u) 3084 | -8/Mines | Core integrity fell below 50% 3118 | -8/Mines | Lost 6 parts (3n2u1w) 3444 | -8/Mines | Discovered new exit (range 21) 3531 | -8/Mines | Entered Materials 3531 | -8/Materials | Evolved 2 slots: Propulsion x1, Utility x1 3798 | -8/Materials | Discovered new exit (range 14) 3832 | -8/Materials | Entered Factory 3832 | -7/Factory | Evolved 2 slots: Utility x2 4285 | -7/Factory | Discovered new exit (range 14) 4407 | -7/Factory | Fabricated Hacking Suite (x1) 4484 | -7/Factory | Discovered new exit (range 15) 4776 | -7/Factory | Build established: Hacker-Mutant 4813 | -7/Factory | Identified exit to Storage 4813 | -7/Factory | Identified exit to Lower Caves 5097 | -7/Factory | Entered Storage 5140 | -7/Storage | Found Prototype Launcher 5140 | -7/Storage | Identified Scatter Rocket Array 5153 | -7/Storage | Lost 3 parts (2n1w) 5254 | -7/Storage | Used back door to open Recycling access 5254 | -7/Storage | Discovered new exit (range 5) 5256 | -7/Storage | Entered Recycling 5260 | -7/Recycling | Found Scrap Engine 5275 | -7/Recycling | Lost 3 parts (2n1u) 5550 | -7/Recycling | Discovered new exit (range 16) 5921 | -7/Recycling | Entered Factory 5921 | -5/Factory | Evolved 4 slots: Power x1, Propulsion x1, Utility x2 6642 | -5/Factory | Build established: Hacker-Construct 6836 | -5/Factory | Fabricated Hacking Suite? 7062 | -5/Factory | System corruption reached 10% 7132 | -5/Factory | Build established: Wizard-Mutant 7196 | -5/Factory | Identified exit to Upper Caves 7196 | -5/Factory | Identified exit to Extension 7239 | -5/Factory | Entered Upper Caves 7269 | -5/Upper Caves | Lost 3 parts (1n2u) 7521 | -5/Upper Caves | Build established: Hacker-Mutant 7768 | -5/Upper Caves | Spotted B-75 Beast 8334 | -5/Upper Caves | Attracted the attention of an 0b10 checkpoint 8427 | -5/Upper Caves | Core integrity fell below 50% 8440 | -5/Upper Caves | Discovered new exit (range 8) 8444 | -5/Upper Caves | Entered another Upper Caves area 8458 | -5/Upper Caves | Discovered new exit (range 6) 8540 | -5/Upper Caves | Core integrity fell below 20% 8568 | -5/Upper Caves | Entered Factory 8568 | -4/Factory | Evolved 2 slots: Utility x2 8942 | -4/Factory | Discovered new exit (range 11) 8947 | -4/Factory | Entered Armory 8976 | -4/Armory | Lost 4 parts (1p1n1u1w) 9066 | -4/Armory | Identified exit to Research 9104 | -4/Armory | Core integrity fell below 50% 9120 | -4/Armory | Core integrity fell below 20% 9122 | -4/Armory | Destroyed by Y-72 Warden with Railgun Last Messages --------------- Tracking enabled and active. >>Layout(Zone) Retrieving Zone 5S layout... Downloaded map data. 09103_ W-44 Eye sends out distress signal. 09107_ Slammed into Y-64 Sentinel. 09109_ Slug penetrates Wall. 09111_ Penetrated by Slug. 09112_ M-13 Machinist repairs Imp. Surge Thruster. 09119_ Slammed into Y-72 Warden. 09120_ System Shield destroyed. 09120_ Penetrated by Slug. 09120_ S-27 Virus destroyed. 09121_ Graphene Brace blown off. 09121_ Enh. Optical Array blown off. 09121_ E-15 Imp destroyed. 09122_ Penetrated by Slug. 09122_ Slug penetrates Y-72 Warden. 09122_ Penetrated by Slug. Map ----- +----------------------------------------------------+ | ?????????????????????????????????????????????????? | | ?????????????????????????????????????????????????? | | ?????????????????????????????????????????????????? | | ?????????????????????????????????????????????????? | | ?????????????????????????????????????????????????? | | ?????????????????????????????????????????????????? | | ?????????????????????????????????????????????????? | | ?????????????????????????????????????????????????? | | ?????????????????????????????????????????????????? | | ?????????????????????????????????????????????????? | | ?????????????????????????????????????????????????? | | ?????????????????????????????????????????????????? | | ?????????????????????????????????????????????????? | | ?????????????????????????????????????????????????? | | ?????????????????????????????????????????????????? | | ?????????????????????????????????????????????????? | | ?????????????????????????????????????????????????? | | ?????????????????????????????????????????????????? | | ?????????????????????????????????????????????????? | | ?????????????????????????????????????????????????? | | ?????????????????????????????????????????????????? | | ????????????????????####++####???????????????????? | | ????????????????????# #???????????????????? | | ????????????????????# ! YY